[Event "GAMMA Reykjavik Open 2019"]
[Site "Reykjavik"]
[Date "2019.04.14"]
[Round "7.10"]
[White "Libiszewski, Fabien"]
[Black "Potkin, Vladimir"]
[Result "1/2-1/2"]
[ECO "B90"]
[WhiteElo "2488"]
[BlackElo "2597"]
[Annotator "ChessBase"]
[PlyCount "63"]
[EventDate "2019.04.04"]
[EventType "swiss"]
[EventCountry "ISL"]
[SourceTitle "playchess.com"]
[Source "ChessBase"]
[SourceQuality "1"]
[TimeControl "40/5400+30:1800+30"]

1. e4 {[%emt 0:00:00]} c5 {[%emt 0:00:00]} 2. Nf3 {[%emt 0:00:00]} d6 {[%emt 0:00:00]} 3. d4 {[%emt 0:00:41]} cxd4 {[%emt 0:00:00]} 4. Nxd4 {[%emt 0:00:10]} Nf6 {[%emt 0:00:00]} 5. Nc3 {[%emt 0:00:12]} a6 {[%emt 0:00:05]} 6. Be3 {[%emt 0:00:30]} e5 {[%emt 0:00:53]} 7. Nb3 {[%emt 0:00:22]} Be7 {[%emt 0:01:01]} 8. h3 {[%emt 0:02:01]} Be6 {[%emt 0:01:02]} 9. g4 {[%emt 0:02:12]} d5 {[%emt 0:04:01]} 10. exd5 {[%emt 0:00:36]} Nxd5 {[%emt 0:00:07]} 11. Bg2 {[%emt 0:00:24]} Nxe3 {[%emt 0:05:39]} 12. Qxd8+ {[%emt 0:01:16]} Kxd8 {[%emt 0:02:59]} 13. fxe3 {[%emt 0:02:57]} Bh4+ {[%emt 0:10:22]} 14. Kf1 {[%emt 0:10:54]} Bc4+ {[%emt 0:22:12]} 15. Kg1 {[%emt 0:02:46]} Nc6 {[%emt 0:00:08]} 16. Nc5 {[%emt 0:07:12]} Kc7 {[%emt 0:01:25]} 17. b3 {[%emt 0:05:45]} Be7 {[%emt 0:03:56]} 18. Nd3 {[%emt 0:11:22]} Bxd3 {[%emt 0:06:04]} 19. Nd5+ {[%emt 0:03:06]} Kd6 {[%emt 0:00:06]} 20. cxd3 {[%emt 0:01:11]} Bh4 {[%emt 0:08:13]} 21. Kf1 {[%emt 0:09:15]} Raf8 {[%emt 0:06:17]} 22. Ke2 {[%emt 0:01:19]} f5 {[%emt 0:01:48]} 23. gxf5 {[%emt 0:09:10]} Rxf5 {[%emt 0:01:31]} 24. Raf1 {[%emt 0:01:25]} Rhf8 {[%emt 0:00:00]} 25. Rxf5 {[%emt 0:00:19]} Rxf5 {[%emt 0:00:00]} 26. Rf1 {[%emt 0:00:18]} Rxf1 {[%emt 0:00:00]} 27. Kxf1 {[%emt 0:00:06]} Bd8 {[%emt 0:01:07]} 28. Ke2 {[%emt 0:01:50]} b5 {[%emt 0:06:13]} 29. b4 {[%emt 0:11:11]} a5 {[%emt 0:02:44]} 30. bxa5 {[%emt 0:02:45]} Bxa5 {[%emt 0:00:19]} 31. Kd1 {[%emt 0:01:59]} Nb4 {[%emt 0:07:07]} 32. Nxb4 {[%emt 0:00:08] Kd5 [%emt 00:00:21]} 1/2-1/2

[Event "GAMMA Reykjavik Open 2019"]
[Site "Reykjavik"]
[Date "2019.04.14"]
[Round "7.11"]
[White "Fier, Alexandr"]
[Black "Loiseau, Quentin"]
[Result "0-1"]
[ECO "A13"]
[WhiteElo "2570"]
[BlackElo "2461"]
[Annotator "ChessBase"]
[PlyCount "98"]
[EventDate "2019.04.04"]
[EventType "swiss"]
[EventCountry "ISL"]
[SourceTitle "playchess.com"]
[Source "ChessBase"]
[SourceQuality "1"]
[TimeControl "40/5400+30:1800+30"]

1. c4 {[%emt 0:00:00]} e6 {[%emt 0:00:33]} 2. Nf3 {[%emt 0:00:00]} d5 {[%emt 0:00:10]} 3. g3 {[%emt 0:00:00]} Nf6 {[%emt 0:00:42]} 4. Bg2 {[%emt 0:00:00]} d4 {[%emt 0:02:27]} 5. O-O {[%emt 0:00:03]} c5 {[%emt 0:00:11]} 6. e3 {[%emt 0:00:07]} Nc6 {[%emt 0:00:06]} 7. exd4 {[%emt 0:00:04]} cxd4 {[%emt 0:00:05]} 8. d3 {[%emt 0:02:00]} Bd6 {[%emt 0:03:21]} 9. b3 {[%emt 0:05:42]} O-O {[%emt 0:01:38]} 10. Ba3 {[%emt 0:00:02]} Re8 {[%emt 0:06:58]} 11. Bxd6 {[%emt 0:00:57]} Qxd6 {[%emt 0:00:43]} 12. a3 {[%emt 0:00:02]} a5 {[%emt 0:00:20]} 13. Nbd2 {[%emt 0:00:03]} h6 {[%emt 0:02:23]} 14. Qc2 {[%emt 0:01:53]} e5 {[%emt 0:06:16]} 15. c5 {[%emt 0:00:19]} Qe7 {[%emt 0:04:22]} 16. Rfe1 {[%emt 0:00:05]} Bf5 {[%emt 0:03:00]} 17. Nh4 {[%emt 0:02:01]} Be6 {[%emt 0:10:32]} 18. Ne4 {[%emt 0:03:32]} Nd5 {[%emt 0:15:23]} 19. Nf3 {[%emt 0:02:43]} Red8 {[%emt 0:18:24]} 20. Nd6 {[%emt 0:03:55]} b6 {[%emt 0:06:16]} 21. Nxe5 {[%emt 0:05:10]} Nxe5 {[%emt 0:01:00]} 22. Rxe5 {[%emt 0:00:06]} bxc5 {[%emt 0:00:07]} 23. Nc4 {[%emt 0:01:18]} Qc7 {[%emt 0:03:10]} 24. Rae1 {[%emt 0:03:22]} Rab8 {[%emt 0:02:02]} 25. f4 {[%emt 0:03:26]} Ne3 {[%emt 0:04:43]} 26. Nxe3 {[%emt 0:00:17]} dxe3 {[%emt 0:00:09]} 27. R1xe3 {[%emt 0:01:35]} Qd7 {[%emt 0:03:38]} 28. Qxc5 {[%emt 0:01:07]} Rdc8 {[%emt 0:01:43]} 29. Qxa5 {[%emt 0:00:15]} Qd4 {[%emt 0:00:46]} 30. Kh1 {[%emt 0:03:44]} Rc2 {[%emt 0:01:26]} 31. Qe1 {[%emt 0:02:17]} Rbc8 {[%emt 0:00:49]} 32. Qf1 {[%emt 0:01:25]} Qb2 {[%emt 0:01:17]} 33. Re2 {[%emt 0:01:44]} Bg4 {[%emt 0:00:26]} 34. Rxc2 {[%emt 0:04:27]} Rxc2 {[%emt 0:00:03]} 35. h3 {[%emt 0:00:03]} Be2 {[%emt 0:00:29]} 36. Qf2 {[%emt 0:02:00]} Bxd3 {[%emt 0:00:03]} 37. Qf3 {[%emt 0:00:03]} Rc1+ {[%emt 0:00:58]} 38. Kh2 {[%emt 0:00:03]} Bf1 {[%emt 0:00:45]} 39. Qa8+ {[%emt 0:11:55]} Kh7 {[%emt 0:00:01]} 40. Qe4+ {[%emt 0:00:00]} g6 {[%emt 0:00:00]} 41. Qd5 {[%emt 0:00:45]} Rc7 {[%emt 0:04:05]} 42. Re8 {[%emt 0:08:46]} Bxg2 {[%emt 0:01:23]} 43. Qe5 {[%emt 0:00:06]} Qxe5 {[%emt 0:00:09]} 44. Rxe5 {[%emt 0:00:02]} Rc2 {[%emt 0:00:17]} 45. b4 {[%emt 0:00:02]} Bb7+ {[%emt 0:01:57]} 46. Kg1 {[%emt 0:01:05]} Rg2+ {[%emt 0:00:32]} 47. Kf1 {[%emt 0:00:03]} Rxg3 {[%emt 0:00:06]} 48. a4 {[%emt 0:00:53]} Rf3+ {[%emt 0:00:06]} 49. Ke1 {[%emt 0:00:07]} Rxf4 {[%emt 0:00:03]} 0-1

[Event "GAMMA Reykjavik Open 2019"]
[Site "Reykjavik"]
[Date "2019.04.14"]
[Round "7.12"]
[White "Brunello, Sabino"]
[Black "Lagarde, Maxime"]
[Result "1-0"]
[ECO "D80"]
[WhiteElo "2534"]
[BlackElo "2612"]
[Annotator "RC"]
[PlyCount "99"]
[EventDate "2019.04.04"]
[EventType "swiss"]
[EventCountry "ISL"]
[SourceTitle "playchess.com"]
[Source "ChessBase"]
[SourceQuality "1"]
[TimeControl "40/5400+30:1800+30"]

1. d4 {[%emt 0:00:24]} Nf6 {[%emt 0:00:00]} 2. c4 {[%emt 0:00:20]} g6 {[%emt 0:00:00]} 3. Nc3 {[%emt 0:00:29]} d5 {[%emt 0:00:01]} 4. Bg5 {[%emt 0:03:53]} Bg7 {[%emt 0:01:07]} 5. Bxf6 {[%emt 0:00:30]} Bxf6 {[%emt 0:00:05]} 6. cxd5 {[%emt 0:01:32]} c5 {[%emt 0:00:03]} 7. dxc6 {[%emt 0:01:06]} Bxd4 {[%emt 0:02:05]} 8. cxb7 {[%emt 0:06:53]} Bxb7 {[%emt 0:03:09]} 9. e3 {[%emt 0:00:10]} Bxc3+ {[%emt 0:00:25]} 10. bxc3 {[%emt 0:00:01]} Qa5 {[%emt 0:01:18]} 11. Rb1 {[%emt 0:08:28]} Qxc3+ {[%emt 0:12:27]} 12. Qd2 {[%emt 0:00:12]} Qxd2+ {[%emt 0:01:09]} 13. Kxd2 {[%emt 0:00:02]} Nc6 {[%emt 0:00:32]} 14. Nf3 {[%emt 0:06:38]} O-O-O+ {[%emt 0:00:12]} 15. Bd3 {[%emt 0:02:51]} e5 {[%emt 0:08:34]} 16. Rhc1 {[%emt 0:01:55]} Rhe8 {[%emt 0:00:28]} 17. e4 {[%emt 0:04:30]} Re7 {[%emt 0:01:28]} 18. Ke3 {[%emt 0:12:44]} Rc7 {[%emt 0:02:17]} 19. Bc4 {[%emt 0:04:00]} f6 {[%emt 0:03:25]} 20. Bd5 {[%emt 0:07:38]} Na5 {[%emt 0:02:25]} 21. Rxc7+ {[%emt 0:00:25]} Kxc7 {[%emt 0:00:04]} 22. Rb5 {[%emt 0:00:03]} Rxd5 {[%emt 0:05:50]} 23. exd5 {[%emt 0:00:42]} Nc4+ {[%emt 0:00:04]} 24. Ke2 {[%emt 0:05:04]} Nd6 {[%emt 0:00:05]} 25. Rb2 {[%emt 0:00:15]} Bxd5 {[%emt 0:00:43]} 26. g4 {[%emt 0:01:14]} g5 {[%emt 0:04:53]} 27. Nd2 {[%emt 0:01:40]} a5 {[%emt 0:01:24]} 28. Kd3 {[%emt 0:05:14]} Bf7 {[%emt 0:20:09]} 29. Ne4 {[%emt 0:05:46]} Bg6 {[%emt 0:01:32]} 30. f3 {[%emt 0:00:03]} f5 {[%emt 0:02:33]} 31. Nxd6 {[%emt 0:05:11]} Kxd6 {[%emt 0:00:04]} 32. gxf5 {[%emt 0:01:56]} Bxf5+ {[%emt 0:00:03]} 33. Kc4 {[%emt 0:00:21]} Be6+ {[%emt 0:02:21]} 34. Kb5 {[%emt 0:01:48]} Bd5 {[%emt 0:01:37]} 35. Rf2 {[%emt 0:04:00]} h5 {[%emt 0:02:34]} 36. a4 {[%emt 0:02:24]} e4 {[%emt 0:05:01]} 37. fxe4 {[%emt 0:00:57]} Bxe4 {[%emt 0:00:04]} 38. Rf6+ {[%emt 0:05:53]} Ke5 {[%emt 0:00:05]} 39. Rh6 {[%emt 0:00:04]} h4 {[%emt 0:00:18]} 40. Kxa5 {[%emt 0:00:00]} Kf4 {[%emt 0:00:00]} 41. Kb6 {[%emt 0:01:27]} Kf3 {[%emt 0:05:49]} 42. Kc5 {[%emt 0:21:29]} Kg2 {[%emt 0:05:06]} 43. Kd4 {[%emt 0:00:28]} Bf3 {[%emt 0:01:22]} 44. Ke3 {[%emt 0:02:01]} h3 {[%emt 0:00:04]} 45. a5 {[%emt 0:05:10]} g4 {[%emt 0:00:38]} 46. Rg6 {[%emt 0:00:32]} Kxh2 {[%emt 0:01:26]} 47. Kf2 {[%emt 0:00:03]} Be2 {[%emt 0:00:50]} 48. Kxe2 {[%emt 0:01:16]} g3 {[%emt 0:00:02]} 49. a6 {[%emt 0:00:19]} g2 {[%emt 0:00:03]} 50. a7 {[%emt 0:00:14]} 1-0

[Event "GAMMA Reykjavik Open 2019"]
[Site "Reykjavik"]
[Date "2019.04.14"]
[Round "7.15"]
[White "Thorhallsson, Simon"]
[Black "Djukic, Nikola"]
[Result "0-1"]
[ECO "E81"]
[WhiteElo "2171"]
[BlackElo "2566"]
[Annotator "ChessBase"]
[PlyCount "86"]
[EventDate "2019.04.04"]
[EventType "swiss"]
[EventCountry "ISL"]
[SourceTitle "playchess.com"]
[Source "ChessBase"]
[SourceQuality "1"]
[TimeControl "40/5400+30:1800+30"]

1. d4 {[%emt 0:00:00]} Nf6 {[%emt 0:00:00]} 2. c4 {[%emt 0:00:00]} g6 {[%emt 0:00:00]} 3. Nc3 {[%emt 0:00:00]} Bg7 {[%emt 0:00:00]} 4. e4 {[%emt 0:00:07]} d6 {[%emt 0:00:00]} 5. f3 {[%emt 0:04:05]} O-O {[%emt 0:00:00]} 6. Be3 {[%emt 0:00:17]} a6 {[%emt 0:00:04]} 7. Qd2 {[%emt 0:00:25]} Nbd7 {[%emt 0:00:06]} 8. Nh3 {[%emt 0:00:50]} c5 {[%emt 0:02:12]} 9. d5 {[%emt 0:00:38]} b5 {[%emt 0:00:18]} 10. cxb5 {[%emt 0:01:58]} Qa5 {[%emt 0:00:06]} 11. bxa6 {[%emt 0:01:48]} Bxa6 {[%emt 0:00:10]} 12. Bxa6 {[%emt 0:02:50]} Qxa6 {[%emt 0:00:07]} 13. Qe2 {[%emt 0:02:47]} Rfb8 {[%emt 0:02:24]} 14. Qxa6 {[%emt 0:06:57]} Rxa6 {[%emt 0:00:23]} 15. Rb1 {[%emt 0:03:16]} Ng4 {[%emt 0:03:42]} 16. Bd2 {[%emt 0:02:53]} Ne3 {[%emt 0:01:55]} 17. Kf2 {[%emt 0:07:36]} Nc4 {[%emt 0:00:51]} 18. Ke2 {[%emt 0:00:34]} Nxb2 {[%emt 0:01:51]} 19. Rhc1 {[%emt 0:01:26]} Rbb6 {[%emt 0:06:59]} 20. Rc2 {[%emt 0:06:42]} Nc4 {[%emt 0:09:12]} 21. Rxb6 {[%emt 0:03:22]} Ndxb6 {[%emt 0:00:05]} 22. Nf2 {[%emt 0:02:23]} f5 {[%emt 0:07:43]} 23. Nfd1 {[%emt 0:03:15]} fxe4 {[%emt 0:06:04]} 24. fxe4 {[%emt 0:00:10]} Be5 {[%emt 0:03:44]} 25. h3 {[%emt 0:01:48]} Kf7 {[%emt 0:00:58]} 26. Ne3 {[%emt 0:02:15]} Nxe3 {[%emt 0:04:16]} 27. Kxe3 {[%emt 0:00:20]} Nc4+ {[%emt 0:01:34]} 28. Kd3 {[%emt 0:00:27]} Nxd2 {[%emt 0:00:42]} 29. Kxd2 {[%emt 0:00:22]} Ra3 {[%emt 0:01:01]} 30. Nb5 {[%emt 0:01:30]} Ra4 {[%emt 0:01:37]} 31. Kd3 {[%emt 0:02:50]} Kf6 {[%emt 0:01:53]} 32. Rf2+ {[%emt 0:02:35]} Kg5 {[%emt 0:00:11]} 33. Rf7 {[%emt 0:00:48]} c4+ {[%emt 0:01:52]} 34. Ke3 {[%emt 0:00:56]} Rxa2 {[%emt 0:00:36]} 35. Rxe7 {[%emt 0:00:19]} Rxg2 {[%emt 0:01:26]} 36. Rc7 {[%emt 0:05:38]} Rg3+ {[%emt 0:00:36]} 37. Kd2 {[%emt 0:00:44]} Rd3+ {[%emt 0:05:08]} 38. Ke2 {[%emt 0:03:43]} Rb3 {[%emt 0:01:32]} 39. Na7 {[%emt 0:00:12]} Rxh3 {[%emt 0:01:21]} 40. Rxc4 {[%emt 0:00:00]} Kf4 {[%emt 0:00:00]} 41. Nc6 {[%emt 0:00:23]} Re3+ {[%emt 0:00:55]} 42. Kf2 {[%emt 0:00:12]} Rxe4 {[%emt 0:00:09]} 43. Nxe5 {[%emt 0:00:17]} Kxe5 {[%emt 0:00:11]} 0-1

[Event "GAMMA Reykjavik Open 2019"]
[Site "Reykjavik"]
[Date "2019.04.14"]
[Round "7.18"]
[White "Giacomini, Hector"]
[Black "Kanarek, Marcel"]
[Result "0-1"]
[ECO "A48"]
[WhiteElo "2167"]
[BlackElo "2505"]
[Annotator "ChessBase"]
[PlyCount "68"]
[EventDate "2019.04.04"]
[EventType "swiss"]
[EventCountry "ISL"]
[SourceTitle "playchess.com"]
[Source "ChessBase"]
[SourceQuality "1"]
[TimeControl "40/5400+30:1800+30"]

1. Nf3 {[%emt 0:00:00]} Nf6 {[%emt 0:00:00]} 2. d4 {[%emt 0:00:00]} g6 {[%emt 0:00:00]} 3. Bg5 {[%emt 0:00:00]} Bg7 {[%emt 0:00:00]} 4. Nbd2 {[%emt 0:00:00]} O-O {[%emt 0:00:06]} 5. e3 {[%emt 0:00:02]} d6 {[%emt 0:03:51]} 6. Bd3 {[%emt 0:00:57]} Nc6 {[%emt 0:03:05]} 7. c3 {[%emt 0:01:42]} h6 {[%emt 0:04:27]} 8. Bh4 {[%emt 0:00:26]} e5 {[%emt 0:01:19]} 9. O-O {[%emt 0:00:39]} g5 {[%emt 0:06:24]} 10. Bg3 {[%emt 0:00:37]} Qe7 {[%emt 0:02:16]} 11. Qc2 {[%emt 0:01:47]} Re8 {[%emt 0:05:43]} 12. dxe5 {[%emt 0:02:04]} dxe5 {[%emt 0:01:12]} 13. e4 {[%emt 0:03:05]} Nh5 {[%emt 0:00:44]} 14. Rfe1 {[%emt 0:05:01]} Nf4 {[%emt 0:03:33]} 15. Bf1 {[%emt 0:01:42]} h5 {[%emt 0:00:58]} 16. h3 {[%emt 0:03:12]} g4 {[%emt 0:17:45]} 17. hxg4 {[%emt 0:01:45]} hxg4 {[%emt 0:00:07]} 18. Nh4 {[%emt 0:04:45]} Nh5 {[%emt 0:01:01]} 19. Nc4 {[%emt 0:07:04]} Bf6 {[%emt 0:05:21]} 20. Nf5 {[%emt 0:00:50]} Bxf5 {[%emt 0:00:47]} 21. exf5 {[%emt 0:00:05]} Nxg3 {[%emt 0:06:03]} 22. fxg3 {[%emt 0:00:07]} e4 {[%emt 0:00:25]} 23. Qe2 {[%emt 0:05:29]} Qc5+ {[%emt 0:13:23]} 24. Qe3 {[%emt 0:01:18]} Qxf5 {[%emt 0:00:50]} 25. Qf4 {[%emt 0:01:11]} Qxf4 {[%emt 0:03:07]} 26. gxf4 {[%emt 0:00:05]} Bh4 {[%emt 0:01:00]} 27. Red1 {[%emt 0:02:24]} e3 {[%emt 0:00:38]} 28. Be2 {[%emt 0:00:45]} Re4 {[%emt 0:04:07]} 29. Rd7 {[%emt 0:11:16]} Rxf4 {[%emt 0:03:22]} 30. Rad1 {[%emt 0:01:36]} Re8 {[%emt 0:01:44]} 31. Rxc7 {[%emt 0:05:07]} Bf2+ {[%emt 0:00:12]} 32. Kf1 {[%emt 0:01:34]} Bg3+ {[%emt 0:00:39]} 33. Kg1 {[%emt 0:00:26]} Rxc4 {[%emt 0:03:04]} 34. Bxc4 {[%emt 0:00:22]} Bxc7 {[%emt 0:00:22]} 0-1

[Event "GAMMA Reykjavik Open 2019"]
[Site "Reykjavik"]
[Date "2019.04.14"]
[Round "7.21"]
[White "Prithu Gupta"]
[Black "Le Goff, Ronan"]
[Result "1-0"]
[ECO "A14"]
[WhiteElo "2478"]
[BlackElo "2186"]
[Annotator "ChessBase"]
[PlyCount "103"]
[EventDate "2019.04.04"]
[EventType "swiss"]
[EventCountry "ISL"]
[SourceTitle "playchess.com"]
[Source "ChessBase"]
[SourceQuality "1"]
[TimeControl "40/5400+30:1800+30"]

1. Nf3 {[%emt 0:00:00]} Nf6 {[%emt 0:00:22]} 2. g3 {[%emt 0:00:00]} e6 {[%emt 0:00:39]} 3. c4 {[%emt 0:00:00]} d5 {[%emt 0:00:06]} 4. Bg2 {[%emt 0:00:00]} Be7 {[%emt 0:00:10]} 5. O-O {[%emt 0:00:03]} O-O {[%emt 0:00:09]} 6. b3 {[%emt 0:00:02]} d4 {[%emt 0:00:24]} 7. e3 {[%emt 0:00:32]} c5 {[%emt 0:00:22]} 8. Ne5 {[%emt 0:00:06]} Ne8 {[%emt 0:19:55]} 9. f4 {[%emt 0:04:11]} f6 {[%emt 0:07:09]} 10. Nd3 {[%emt 0:00:07]} Nc7 {[%emt 0:05:51]} 11. Ba3 {[%emt 0:03:53]} Nba6 {[%emt 0:01:00]} 12. Bb2 {[%emt 0:00:20]} Rb8 {[%emt 0:06:22]} 13. Na3 {[%emt 0:00:28]} b5 {[%emt 0:06:37]} 14. Nxb5 {[%emt 0:01:06]} Nxb5 {[%emt 0:00:08]} 15. cxb5 {[%emt 0:00:03]} Rxb5 {[%emt 0:00:14]} 16. Qc2 {[%emt 0:00:55]} dxe3 {[%emt 0:19:11]} 17. dxe3 {[%emt 0:00:06]} Nb4 {[%emt 0:00:26]} 18. Nxb4 {[%emt 0:00:29]} cxb4 {[%emt 0:00:43]} 19. Bd4 {[%emt 0:01:22]} Bb7 {[%emt 0:05:39]} 20. Qc4 {[%emt 0:03:59]} Qd7 {[%emt 0:00:39]} 21. Bxb7 {[%emt 0:01:31]} Rxb7 {[%emt 0:00:17]} 22. Rac1 {[%emt 0:00:31]} Rd8 {[%emt 0:06:45]} 23. Qa6 {[%emt 0:04:48]} Kf7 {[%emt 0:03:32]} 24. Rc4 {[%emt 0:14:19]} Qd5 {[%emt 0:05:41]} 25. Qc6 {[%emt 0:12:39]} Qxc6 {[%emt 0:02:08]} 26. Rxc6 {[%emt 0:00:03]} Bd6 {[%emt 0:03:07]} 27. Kf2 {[%emt 0:05:07]} Ke7 {[%emt 0:01:11]} 28. Ke2 {[%emt 0:00:11]} Rc7 {[%emt 0:02:37]} 29. Rfc1 {[%emt 0:00:16]} Kd7 {[%emt 0:00:32]} 30. Rxc7+ {[%emt 0:01:18]} Bxc7 {[%emt 0:00:08]} 31. Bc5 {[%emt 0:03:55]} a5 {[%emt 0:01:07]} 32. g4 {[%emt 0:01:34]} g6 {[%emt 0:00:51]} 33. Be7 {[%emt 0:18:23]} Kxe7 {[%emt 0:00:37]} 34. Rxc7+ {[%emt 0:00:03]} Rd7 {[%emt 0:00:16]} 35. Rxd7+ {[%emt 0:01:45]} Kxd7 {[%emt 0:00:05]} 36. Kd3 {[%emt 0:00:03]} h5 {[%emt 0:01:21]} 37. g5 {[%emt 0:09:12]} fxg5 {[%emt 0:01:15]} 38. fxg5 {[%emt 0:00:02]} Kd6 {[%emt 0:00:26]} 39. Kd4 {[%emt 0:00:33]} h4 {[%emt 0:00:42]} 40. h3 {[%emt 0:00:00]} e5+ {[%emt 0:00:00]} 41. Kc4 {[%emt 0:00:50]} e4 {[%emt 0:06:41]} 42. Kd4 {[%emt 0:00:14]} Ke6 {[%emt 0:08:36]} 43. Kxe4 {[%emt 0:00:03]} Kd6 {[%emt 0:00:15]} 44. Kd4 {[%emt 0:01:47]} Ke6 {[%emt 0:00:51]} 45. e4 {[%emt 0:00:06]} Kd6 {[%emt 0:00:06]} 46. e5+ {[%emt 0:00:13]} Ke6 {[%emt 0:00:30]} 47. Ke4 {[%emt 0:00:05]} Kd7 {[%emt 0:01:48]} 48. Kd5 {[%emt 0:00:07]} Ke7 {[%emt 0:00:08]} 49. e6 {[%emt 0:00:05]} Ke8 {[%emt 0:00:35]} 50. e7 {[%emt 0:00:05]} Kxe7 {[%emt 0:01:04]} 51. Ke5 {[%emt 0:00:06]} Kf7 {[%emt 0:00:48]} 52. Kd6 {[%emt 0:00:06]} 1-0

[Event "GAMMA Reykjavik Open 2019"]
[Site "Reykjavik"]
[Date "2019.04.14"]
[Round "7.24"]
[White "Obrien, Matthew"]
[Black "Suleymenov, Alisher"]
[Result "0-1"]
[ECO "B48"]
[WhiteElo "2110"]
[BlackElo "2431"]
[Annotator "NA"]
[PlyCount "84"]
[EventDate "2019.04.04"]
[EventType "swiss"]
[EventCountry "ISL"]
[SourceTitle "playchess.com"]
[Source "ChessBase"]
[SourceQuality "1"]
[TimeControl "40/5400+30:1800+30"]

1. e4 {[%emt 0:00:00]} c5 {[%emt 0:00:00]} 2. Nf3 {[%emt 0:00:00]} Nc6 {[%emt 0:00:58]} 3. d4 {[%emt 0:00:20]} cxd4 {[%emt 0:00:05]} 4. Nxd4 {[%emt 0:00:05]} e6 {[%emt 0:00:04]} 5. Nc3 {[%emt 0:01:15]} Qc7 {[%emt 0:00:06]} 6. Be3 {[%emt 0:01:00]} a6 {[%emt 0:00:05]} 7. Qf3 {[%emt 0:01:18]} Bd6 {[%emt 0:11:05]} 8. O-O-O {[%emt 0:00:40]} Be5 {[%emt 0:00:08]} 9. Qe2 {[%emt 0:05:36]} Nf6 {[%emt 0:15:26]} 10. g3 {[%emt 0:02:04]} O-O {[%emt 0:00:23]} 11. f4 {[%emt 0:02:23]} Bxd4 {[%emt 0:00:02]} 12. Bxd4 {[%emt 0:00:07]} Nxd4 {[%emt 0:00:03]} 13. Rxd4 {[%emt 0:00:09]} d6 {[%emt 0:01:30]} 14. g4 {[%emt 0:12:38]} e5 $11 {[%emt 0:13:29]} 15. Rc4 {[%emt 0:01:10]} Qd8 {[%emt 0:00:35]} 16. g5 {[%emt 0:06:33]} Nd7 {[%emt 0:00:11]} 17. f5 {[%emt 0:09:24]} b5 {[%emt 0:02:46]} 18. Rc6 {[%emt 0:01:22]} Nb8 {[%emt 0:00:21]} 19. Rxc8 {[%emt 0:00:21]} Qxg5+ {[%emt 0:00:04]} 20. Kb1 {[%emt 0:00:39]} Rxc8 {[%emt 0:00:04]} 21. Nd5 {[%emt 0:00:12]} Nd7 {[%emt 0:10:51]} 22. Qf2 {[%emt 0:02:17]} Kh8 {[%emt 0:09:33]} 23. Rg1 {[%emt 0:00:29]} Qh6 {[%emt 0:00:04]} 24. Bd3 {[%emt 0:05:27]} Rab8 {[%emt 0:08:56]} 25. f6 {[%emt 0:06:29]} Nxf6 {[%emt 0:06:43]} 26. Ne7 {[%emt 0:00:10]} Rf8 {[%emt 0:06:35]} 27. Nf5 {[%emt 0:00:55]} Qf4 {[%emt 0:00:04]} 28. Qg2 {[%emt 0:00:12]} g6 {[%emt 0:00:21]} 29. Nxd6 {[%emt 0:01:05]} Rbd8 {[%emt 0:02:49]} 30. Rf1 {[%emt 0:02:39]} Qe3 {[%emt 0:02:16]} 31. Nb7 {[%emt 0:01:02]} Rd7 {[%emt 0:00:07]} 32. Na5 {[%emt 0:00:51]} Nh5 {[%emt 0:00:14]} 33. a3 {[%emt 0:01:27]} Nf4 {[%emt 0:01:46]} 34. Qg5 {[%emt 0:00:42]} f6 {[%emt 0:00:04]} 35. Qh6 {[%emt 0:00:53]} Rc8 {[%emt 0:00:38]} 36. Ka2 {[%emt 0:02:53]} Qb6 {[%emt 0:00:37]} 37. Nb3 {[%emt 0:01:27]} Nxd3 {[%emt 0:00:09]} 38. cxd3 {[%emt 0:00:30]} Qe6 {[%emt 0:00:17]} 39. Rc1 {[%emt 0:02:01]} Rxc1 {[%emt 0:00:42]} 40. Qf8+ {[%emt 0:00:00]} Qg8 {[%emt 0:00:00]} 41. Qxf6+ {[%emt 0:00:45]} Rg7 {[%emt 0:00:14]} 42. Qxe5 {[%emt 0:00:15]} Rd1 {[%emt 0:00:37]} 0-1

[Event "GAMMA Reykjavik Open 2019"]
[Site "Reykjavik"]
[Date "2019.04.14"]
[Round "7.25"]
[White "Tania, Sachdev"]
[Black "Walton, Alan J"]
[Result "1-0"]
[ECO "E04"]
[WhiteElo "2397"]
[BlackElo "2132"]
[Annotator "NA"]
[PlyCount "59"]
[EventDate "2019.04.04"]
[EventType "swiss"]
[EventCountry "ISL"]
[SourceTitle "playchess.com"]
[Source "ChessBase"]
[SourceQuality "1"]
[TimeControl "40/5400+30:1800+30"]

1. d4 {[%emt 0:00:06]} d5 {[%emt 0:00:12]} 2. c4 {[%emt 0:00:12]} c6 {[%emt 0:00:30]} 3. Nf3 {[%emt 0:00:12]} Nf6 {[%emt 0:00:08]} 4. Nc3 {[%emt 0:00:04]} e6 {[%emt 0:01:16]} 5. g3 {[%emt 0:00:05]} dxc4 {[%emt 0:00:43]} 6. Bg2 {[%emt 0:00:05]} b5 {[%emt 0:00:34]} 7. Ne5 {[%emt 0:01:18]} Nd5 {[%emt 0:03:48]} 8. e4 {[%emt 0:06:58]} Nxc3 {[%emt 0:02:48]} 9. bxc3 {[%emt 0:00:04]} Be7 {[%emt 0:00:14]} 10. a4 {[%emt 0:13:21]} b4 {[%emt 0:01:13]} 11. O-O {[%emt 0:13:35]} a5 {[%emt 0:13:08]} 12. Nxc4 {[%emt 0:37:53]} Ba6 {[%emt 0:04:45]} 13. Qb3 {[%emt 0:00:08]} bxc3 {[%emt 0:07:28]} 14. Rd1 {[%emt 0:00:11]} Nd7 {[%emt 0:04:30]} 15. Qxc3 {[%emt 0:01:39]} Bb4 {[%emt 0:00:39]} 16. Qc2 {[%emt 0:01:11]} O-O {[%emt 0:00:57]} 17. Be3 {[%emt 0:06:48]} Rc8 {[%emt 0:02:48]} 18. Rac1 {[%emt 0:02:56]} Qe7 {[%emt 0:01:29]} 19. Qa2 {[%emt 0:02:51]} Bb7 {[%emt 0:09:30]} 20. Bd2 {[%emt 0:02:08]} c5 {[%emt 0:01:55]} 21. Nxa5 {[%emt 0:01:26]} Bxa5 {[%emt 0:00:10]} 22. Bxa5 {[%emt 0:00:02]} cxd4 {[%emt 0:00:17]} 23. Qb2 {[%emt 0:05:07]} Rxc1 {[%emt 0:03:44]} 24. Rxc1 {[%emt 0:00:30]} Ba6 {[%emt 0:01:35]} 25. Qxd4 {[%emt 0:01:13]} Rb8 {[%emt 0:00:55]} 26. h4 {[%emt 0:00:47]} Nf8 {[%emt 0:01:08]} 27. Rc7 {[%emt 0:00:56]} Rd8 {[%emt 0:02:04]} 28. Qb6 {[%emt 0:01:25]} Rd1+ {[%emt 0:02:14]} 29. Kh2 {[%emt 0:00:01]} Qd6 {[%emt 0:00:08]} 30. Rc6 {[%emt 0:00:30]} 1-0